bitfinex-derivatives/quotes_BTCF0:USTF0_20251213
["timestamp","ask_amount","ask_price","bid_price","bid_amount"]
[1765584645743,0.44439819,90443.0,90442.0,0.06091583]
[1765584645744,0.44539819,90443.0,90442.0,0.06091583]
[1765584646742,0.44439819,90443.0,90442.0,0.05991583]
[1765584646954,0.44439819,90443.0,90442.0,0.06791583]
[1765584647750,0.44990718,90443.0,90442.0,0.06791583]
[1765584649550,0.08910718,90443.0,90442.0,0.06791583]
[1765584649753,0.44990718,90443.0,90442.0,0.06791583]
[1765584652546,0.44964668,90443.0,90442.0,0.06791583]
[1765584654050,0.08884668,90443.0,90442.0,0.06791583]
[1765584654247,0.44964668,90443.0,90442.0,0.06791583]
[1765584660260,0.50929934,90443.0,90442.0,0.06791583]
[1765584663153,0.44964668,90443.0,90442.0,0.06791583]
[1765584666657,0.08884668,90443.0,90442.0,0.06791583]
[1765584666956,0.44964668,90443.0,90442.0,0.06791583]
[1765584667362,0.08884668,90443.0,90442.0,0.06791583]
[1765584667563,0.44964668,90443.0,90442.0,0.06791583]
[1765584676773,0.08884668,90443.0,90442.0,0.06791583]
[1765584685173,0.14856711,90443.0,90442.0,0.06791583]
[1765584686585,0.08884668,90443.0,90442.0,0.06791583]
[1765584710711,0.08884668,90443.0,90442.0,0.04061583]
[1765584711008,0.08884668,90443.0,90442.0,0.01116583]
[1765584711711,0.08884668,90443.0,90442.0,0.04061583]
[1765584714413,0.08884668,90443.0,90442.0,0.07020583]
[1765584719112,0.08884668,90443.0,90442.0,0.04061583]
[1765584719517,0.08884668,90443.0,90442.0,0.07020583]
[1765584720416,0.08884668,90443.0,90442.0,0.01116583]
[1765584722718,0.08884668,90443.0,90442.0,0.04061583]
[1765584724521,0.08884668,90443.0,90442.0,0.01116583]
[1765584727926,0.44964668,90443.0,90442.0,0.01116583]
[1765584739540,0.44964668,90443.0,90442.0,0.06771583]
[1765584742940,0.44964668,90443.0,90442.0,0.04061583]
[1765584750649,0.44964668,90443.0,90442.0,0.06885583]
[1765584756646,0.44964668,90443.0,90442.0,0.04061583]
[1765584757450,0.44964668,90443.0,90442.0,0.06885583]
[1765584759750,0.44964668,90443.0,90442.0,0.01116583]
[1765584779466,0.08884668,90443.0,90442.0,0.01116583]
[1765584779668,0.44964668,90443.0,90442.0,0.01116583]
[1765584781469,0.44964668,90443.0,90442.0,0.06844583]
[1765584785672,0.44964668,90443.0,90442.0,0.04030583]
[1765584791674,0.44964668,90443.0,90442.0,0.01116583]
[1765584791879,0.44964668,90443.0,90442.0,0.04030583]
[1765584798079,0.08884668,90443.0,90442.0,0.04030583]
[1765584798279,0.44964668,90443.0,90442.0,0.04030583]
[1765584804889,0.42465899,90443.0,90442.0,0.04030583]
[1765584805187,0.44990745,90443.0,90442.0,0.04030583]
[1765584806480,0.44990745,90443.0,90442.0,0.06851583]
[1765584808584,0.08910745,90443.0,90442.0,0.06851583]
[1765584808790,0.44990745,90443.0,90442.0,0.06851583]
[1765584813895,0.08910745,90443.0,90442.0,0.06851583]
[1765584814493,0.08910745,90443.0,90442.0,0.04030583]
[1765584815293,0.08910745,90443.0,90442.0,0.06851583]
[1765584824598,0.08910745,90443.0,90442.0,0.04030583]
[1765584824898,0.08910745,90443.0,90442.0,0.06851583]
[1765584830204,0.08896288,90443.0,90442.0,0.06851583]
[1765584830802,0.44976288,90443.0,90442.0,0.06851583]
[1765584831007,0.07396,90430.0,90429.0,0.3608]
[1765584831307,0.05853,90422.0,90421.0,0.05969]
[1765584831605,0.08363389,90422.0,90421.0,0.05969]
[1765584833301,0.09163389,90422.0,90421.0,0.06069]
[1765584833504,0.09663389,90422.0,90421.0,0.06169]
[1765584836610,0.10218119,90422.0,90421.0,0.06169]
[1765584842104,0.07325119,90422.0,90421.0,0.0727484]
[1765584842497,0.07325119,90422.0,90421.0,0.06169]
[1765584842697,0.10218119,90422.0,90421.0,0.06169]
[1765584855616,0.11882119,90422.0,90421.0,0.03181]
[1765584855808,0.11882119,90422.0,90421.0,0.002]
[1765584856009,0.11882119,90422.0,90421.0,0.03181]
[1765584856409,0.11882119,90422.0,90421.0,0.06169]
[1765584861216,0.17852822,90422.0,90421.0,0.002]
[1765584861515,0.11882119,90422.0,90421.0,0.002]
[1765584862322,0.19843111,90422.0,90421.0,0.002]
[1765584863223,0.11882119,90422.0,90421.0,0.002]
[1765584863623,0.19843111,90422.0,90421.0,0.002]
[1765584864223,0.11882119,90422.0,90421.0,0.002]
[1765584869827,0.0776493,90414.0,90413.0,0.01401]
[1765584870028,0.46355319,90414.0,90413.0,0.01401]
[1765584870327,0.05663,90413.0,90412.0,0.00016583]
[1765584870627,0.08173389,90413.0,90412.0,0.00016583]
[1765584871822,0.08173389,90413.0,90412.0,0.03197583]
[1765584872030,0.08173389,90413.0,90412.0,0.05918583]
[1765584872427,0.08173389,90413.0,90412.0,0.06618583]
[1765584872822,0.14133273,90413.0,90412.0,0.06618583]
[1765584873022,0.08173389,90413.0,90412.0,0.06618583]
[1765584873332,0.08273389,90413.0,90412.0,0.06718583]
[1765584873728,0.08373389,90413.0,90412.0,0.07218583]
[1765584874328,0.08373389,90413.0,90412.0,0.07318583]
[1765584874831,0.08373389,90413.0,90412.0,0.01716583]
[1765584875026,0.14333273,90413.0,90412.0,0.01716583]
[1765584875221,0.08373389,90413.0,90412.0,0.01716583]
[1765584876432,0.08373389,90413.0,90412.0,0.01816583]
[1765584877628,0.08373389,90413.0,90412.0,0.01016583]
[1765584877830,0.08373389,90413.0,90412.0,0.01816583]
[1765584889039,0.44453389,90413.0,90412.0,0.01816583]
[1765584890640,0.08373389,90413.0,90412.0,0.01816583]
[1765584890840,0.44453389,90413.0,90412.0,0.01816583]
[1765584891340,0.52414381,90413.0,90412.0,0.01816583]
[1765584891738,0.16334381,90413.0,90412.0,0.01816583]
[1765584891942,0.52414381,90413.0,90412.0,0.07611583]
[1765584893840,0.44453389,90413.0,90412.0,0.07611583]
[1765584895238,0.52414381,90413.0,90412.0,0.07611583]
[1765584898738,0.44453389,90413.0,90412.0,0.07611583]
[1765584898939,0.5241597,90413.0,90412.0,0.07611583]
[1765584899750,0.44453389,90413.0,90412.0,0.07611583]
[1765584900442,0.52417271,90413.0,90412.0,0.07611583]
[1765584900840,0.44453389,90413.0,90412.0,0.07611583]
[1765584901440,0.38790389,90413.0,90412.0,0.07611583]
[1765584903347,0.44760917,90413.0,90412.0,0.07611583]
[1765584904453,0.47665917,90413.0,90412.0,0.07611583]
[1765584905950,0.50647917,90413.0,90412.0,0.07611583]
[1765584908553,0.44677389,90413.0,90412.0,0.07611583]
[1765584914454,0.08597389,90413.0,90412.0,0.07611583]
[1765584919158,0.08613306,90413.0,90412.0,0.07611583]
[1765584919655,0.08613306,90413.0,90412.0,0.08717533]
[1765584919860,0.02726306,90413.0,90412.0,0.08717533]
[1765584920061,0.02726306,90413.0,90412.0,0.07611583]
[1765584925360,0.05509306,90413.0,90412.0,0.07611583]
[1765584926159,0.02726306,90413.0,90412.0,0.07611583]
[1765584926765,0.08753528,90423.0,90422.0,0.0664983]
[1765584927164,0.02783,90423.0,90422.0,0.0664983]
[1765584927362,0.0110576,90428.0,90426.0,0.0835678]
[1765584927363,0.42050528,90427.0,90426.0,0.0835678]
[1765584927565,0.42604344,90427.0,90426.0,0.0835678]
[1765584927767,0.39416816,90427.0,90426.0,0.0835678]
[1765584928072,0.38863,90427.0,90426.0,0.0835678]
[1765584928272,0.41828,90427.0,90426.0,0.07251]
[1765584928670,0.42328,90427.0,90426.0,0.07351]
[1765584929160,0.41928,90427.0,90426.0,0.08151]
[1765584929770,0.42228,90427.0,90426.0,0.08151]
[1765584930370,0.41928,90427.0,90426.0,0.08151]
[1765584930566,0.41928,90427.0,90426.0,0.07851]
[1765584930765,0.41828,90427.0,90426.0,0.08451]
[1765584938086,0.05748,90427.0,90426.0,0.08451]
[1765584938682,0.08260354,90427.0,90426.0,0.08451]
[1765584947678,0.08260354,90427.0,90426.0,0.0955678]
[1765584956383,0.05266354,90427.0,90426.0,0.0955678]
[1765584956586,0.08147354,90427.0,90426.0,0.0955678]
[1765584963988,0.08147354,90427.0,90426.0,0.06744]
[1765584966974,0.1257804,90427.0,90426.0,0.1196077]
[1765584967992,0.08147354,90427.0,90426.0,0.06744]
[1765584968291,0.12475811,90427.0,90426.0,0.12010781]
[1765584969483,0.08147354,90427.0,90426.0,0.06744]
[1765584969683,0.12448625,90427.0,90426.0,0.11978659]
[1765584969992,0.08147354,90427.0,90426.0,0.06744]
[1765584970192,0.12448625,90427.0,90426.0,0.11978659]
[1765584970990,0.1257478,90427.0,90426.0,0.11978659]
[1765584971294,0.08147354,90427.0,90426.0,0.06744]
[1765584971490,0.1257412,90427.0,90426.0,0.11986047]
[1765584972397,0.1257412,90427.0,90426.0,0.06744]
[1765584972398,0.08147354,90427.0,90426.0,0.06744]
[1765584972692,0.12567807,90427.0,90426.0,0.12028804]
[1765584972892,0.12567807,90427.0,90426.0,0.13728804]
[1765584974095,0.12556244,90427.0,90426.0,0.13731707]
[1765584975090,0.08147354,90427.0,90426.0,0.08444]
[1765584975286,0.1256718,90427.0,90426.0,0.13741582]
[1765584975795,0.08147354,90427.0,90426.0,0.08444]
[1765584975986,0.1256718,90427.0,90426.0,0.13741582]
[1765584976185,0.12572475,90427.0,90426.0,0.13744291]
[1765584976695,0.08147354,90427.0,90426.0,0.08444]
[1765584977697,0.12572475,90427.0,90426.0,0.13744291]
[1765584978498,0.12482139,90427.0,90426.0,0.13787878]
[1765584979092,0.08147354,90427.0,90426.0,0.08444]
[1765584979287,0.08147354,90427.0,90426.0,0.13740246]
[1765584979288,0.12524799,90427.0,90426.0,0.13740246]
[1765584980498,0.12508922,90427.0,90426.0,0.13740246]
[1765584981198,0.08147354,90427.0,90426.0,0.13740246]
[1765584981394,0.12508922,90427.0,90426.0,0.13740246]
[1765584983002,0.08147354,90427.0,90426.0,0.13740246]
[1765584983300,0.12537458,90427.0,90426.0,0.13740246]
[1765584983692,0.08147354,90427.0,90426.0,0.13740246]
[1765584983895,0.12537458,90427.0,90426.0,0.13609703]
[1765584984403,0.08147354,90427.0,90426.0,0.08444]
[1765584984601,0.1249436,90427.0,90426.0,0.13797709]
[1765584986404,0.12474644,90427.0,90426.0,0.13782401]
[1765584987007,0.08125162,90427.0,90426.0,0.08444]
[1765584987206,0.12452452,90427.0,90426.0,0.13782401]
[1765584987408,0.08125162,90427.0,90426.0,0.08444]
[1765584987602,0.08125162,90427.0,90426.0,0.13726025]
[1765584987603,0.12570034,90427.0,90426.0,0.13726025]
[1765584988399,0.08125162,90427.0,90426.0,0.08444]
[1765584989706,0.12548676,90427.0,90426.0,0.13798469]
[1765584990401,0.12548676,90427.0,90426.0,0.08444]
[1765584990607,0.12453324,90427.0,90426.0,0.13605357]
[1765584991006,0.08125162,90427.0,90426.0,0.08444]
[1765584991708,0.12443973,90427.0,90426.0,0.13700691]
[1765584992109,0.12495863,90427.0,90426.0,0.13735137]
[1765584993111,0.1250688,90427.0,90426.0,0.13729768]
[1765584994314,0.08125162,90427.0,90426.0,0.08444]
[1765584994515,0.12510398,90427.0,90426.0,0.13687701]
[1765584994715,0.08125162,90427.0,90426.0,0.08444]
[1765584994913,0.12509726,90427.0,90426.0,0.11986898]
[1765584995506,0.08125162,90427.0,90426.0,0.06744]
[1765584995810,0.12451364,90427.0,90426.0,0.12072914]
[1765584996106,0.12451364,90427.0,90426.0,0.06528914]
[1765584996618,0.08125162,90427.0,90426.0,0.012]
[1765584996809,0.12492381,90427.0,90426.0,0.06486441]
[1765584997811,0.12492381,90427.0,90426.0,0.12338441]
[1765584998116,0.12509089,90427.0,90426.0,0.12262849]
[1765584999212,0.12540333,90427.0,90426.0,0.12353762]
[1765584999412,0.12540333,90427.0,90426.0,0.14143762]
[1765584999612,0.08125162,90427.0,90426.0,0.08842]
[1765585000318,0.12540333,90427.0,90426.0,0.14143762]
[1765585001414,0.12578158,90427.0,90426.0,0.14031509]
[1765585001918,0.08125162,90427.0,90426.0,0.08842]
[1765585002607,0.12578158,90427.0,90426.0,0.14031509]
[1765585003320,0.09697158,90427.0,90426.0,0.14031509]
[1765585003722,0.09608395,90427.0,90426.0,0.14136693]
[1765585004219,0.12331395,90427.0,90426.0,0.14136693]
[1765585004920,0.07967162,90427.0,90426.0,0.08842]
[1765585005620,0.1243225,90427.0,90426.0,0.14090315]
[1765585006711,0.12383812,90427.0,90426.0,0.1402494]
[1765585007720,0.07967162,90427.0,90426.0,0.08842]
[1765585007922,0.1239755,90427.0,90426.0,0.14204308]
[1765585008424,0.07967162,90427.0,90426.0,0.08842]
[1765585008624,0.1239755,90427.0,90426.0,0.14204308]
[1765585009625,0.12365985,90427.0,90426.0,0.14075145]
[1765585011026,0.07967162,90427.0,90426.0,0.08842]
[1765585011226,0.12299384,90427.0,90426.0,0.14107906]
[1765585012625,0.12326583,90427.0,90426.0,0.14149318]
[1765585013723,0.12326583,90427.0,90426.0,0.08842]
[1765585013927,0.12302242,90427.0,90426.0,0.14028686]
[1765585015331,0.09579242,90427.0,90426.0,0.14028686]
[1765585015520,0.05244162,90427.0,90426.0,0.08842]
[1765585016129,0.07975162,90427.0,90426.0,0.08842]
[1765585016523,0.12434308,90427.0,90426.0,0.14021814]
[1765585016825,0.07975162,90427.0,90426.0,0.08842]
[1765585017027,0.12329579,90427.0,90426.0,0.14061242]
[1765585017531,0.07975162,90427.0,90426.0,0.08842]
[1765585017731,0.12418826,90427.0,90426.0,0.140443]
[1765585019821,0.07975162,90427.0,90426.0,0.08842]
[1765585020127,0.12363585,90427.0,90426.0,0.14081154]
[1765585021227,0.12415883,90427.0,90426.0,0.14148147]
[1765585021829,0.09684883,90427.0,90426.0,0.14148147]
[1765585022027,0.12415883,90427.0,90426.0,0.14148147]
[1765585022434,0.12404918,90427.0,90426.0,0.14034729]
[1765585023646,0.12307861,90427.0,90426.0,0.14167469]
[1765585024443,0.07975162,90427.0,90426.0,0.08842]
[1765585024643,0.12380085,90427.0,90426.0,0.14074677]
[1765585025949,0.12402591,90427.0,90426.0,0.14013382]
[1765585026647,0.07975162,90427.0,90426.0,0.08842]
[1765585026846,0.12402591,90427.0,90426.0,0.14013382]
[1765585027946,0.07975162,90427.0,90426.0,0.08842]
[1765585028248,0.122963,90427.0,90426.0,0.14046511]
[1765585028948,0.122963,90427.0,90426.0,0.12256511]
[1765585029148,0.07975162,90427.0,90426.0,0.07052]
[1765585029648,0.12290323,90427.0,90426.0,0.12279602]
[1765585030444,0.07975162,90427.0,90426.0,0.07052]
[1765585031547,0.12331581,90427.0,90426.0,0.12398515]
[1765585031948,0.12429069,90427.0,90426.0,0.12360934]
[1765585032650,0.123071,90427.0,90426.0,0.12217405]
[1765585033742,0.12341314,90427.0,90426.0,0.12383982]
[1765585033949,0.12341314,90427.0,90426.0,0.06531982]
[1765585034251,0.07975162,90427.0,90426.0,0.012]
[1765585034845,0.12341314,90427.0,90426.0,0.06531982]
[1765585035750,0.12300443,90427.0,90426.0,0.06459667]
[1765585036152,0.18271697,90427.0,90426.0,0.06459667]
[1765585036644,0.13946416,90427.0,90426.0,0.012]
[1765585036843,0.18295543,90427.0,90426.0,0.06456252]
[1765585037346,0.13946416,90427.0,90426.0,0.012]
[1765585037950,0.18391542,90427.0,90426.0,0.06561535]
[1765585038451,0.13946416,90427.0,90426.0,0.012]
[1765585038664,0.18303126,90427.0,90426.0,0.06388293]
[1765585039558,0.13946416,90427.0,90426.0,0.012]
[1765585039759,0.18336599,90427.0,90426.0,0.06560775]
[1765585040857,0.13946416,90427.0,90426.0,0.012]
[1765585041257,0.07975162,90427.0,90426.0,0.012]
[1765585041761,0.07975162,90427.0,90426.0,0.0649988]
[1765585042957,0.07975162,90427.0,90426.0,0.012]
[1765585043159,0.07975162,90427.0,90426.0,0.06501576]
[1765585044556,0.07975162,90427.0,90426.0,0.06541407]
[1765585044757,0.07975162,90427.0,90426.0,0.012]
[1765585044944,0.07975162,90427.0,90426.0,0.06541407]
[1765585045350,0.07975162,90427.0,90426.0,0.03919]
[1765585046158,0.07975162,90427.0,90426.0,0.0502478]
[1765585046461,0.07975162,90427.0,90426.0,0.13252648]
[1765585047859,0.07975162,90427.0,90426.0,0.13250042]
[1765585048957,0.07975162,90427.0,90426.0,0.0800978]
[1765585050160,0.07975162,90427.0,90426.0,0.13275429]
[1765585050861,0.07975162,90427.0,90426.0,0.13325055]
[1765585051653,0.07975162,90427.0,90426.0,0.13369392]
[1765585052957,0.07975162,90427.0,90426.0,0.13338388]
[1765585053558,0.07975162,90427.0,90426.0,0.0800978]
[1765585053862,0.07975162,90427.0,90426.0,0.13338388]
[1765585054566,0.07975162,90427.0,90426.0,0.0800978]
[1765585054766,0.07975162,90427.0,90426.0,0.13244346]
[1765585055467,0.07975162,90427.0,90426.0,0.0800978]
[1765585055869,0.07975162,90427.0,90426.0,0.13265091]
[1765585056670,0.07975162,90427.0,90426.0,0.0800978]
[1765585056868,0.07975162,90427.0,90426.0,0.13222072]
[1765585057756,0.07975162,90427.0,90426.0,0.0800978]
[1765585057956,0.07975162,90427.0,90426.0,0.13263815]
[1765585059573,0.07975162,90427.0,90426.0,0.0800978]
[1765585059870,0.07975162,90427.0,90426.0,0.13164533]
[1765585060572,0.07975162,90427.0,90426.0,0.14941533]
[1765585060771,0.07975162,90427.0,90426.0,0.0978678]
[1765585061473,0.07975162,90427.0,90426.0,0.14972784]
[1765585062076,0.07975162,90427.0,90426.0,0.0978678]
[1765585062275,0.07975162,90427.0,90426.0,0.14940578]
[1765585063278,0.07975162,90427.0,90426.0,0.0978678]
[1765585064580,0.07975162,90427.0,90426.0,0.4586678]
[1765585064776,0.07975162,90427.0,90426.0,0.51101524]
[1765585065881,0.07975162,90427.0,90426.0,0.4586678]
[1765585066078,0.07975162,90427.0,90426.0,0.51205077]
[1765585066378,0.07975162,90427.0,90426.0,0.4586678]
[1765585066780,0.07975162,90427.0,90426.0,0.51205077]
[1765585067581,0.07975162,90427.0,90426.0,0.51138442]
[1765585068172,0.07975162,90427.0,90426.0,0.4586678]
[1765585068480,0.07975162,90427.0,90426.0,0.51138442]
[1765585068882,0.07975162,90427.0,90426.0,0.4586678]
[1765585069081,0.07975162,90427.0,90426.0,0.51115265]
[1765585069566,0.07975162,90427.0,90426.0,0.4586678]
[1765585069769,0.07975162,90427.0,90426.0,0.51160672]
[1765585071185,0.07975162,90427.0,90426.0,0.4586678]
[1765585071883,0.07975162,90427.0,90426.0,0.51136155]
[1765585072281,0.02490162,90427.0,90426.0,0.4586678]
[1765585072484,0.02490162,90427.0,90426.0,0.51228039]
[1765585073084,0.05282162,90427.0,90426.0,0.51228039]
[1765585073287,0.08260162,90427.0,90426.0,0.51228039]
[1765585073488,0.08260162,90427.0,90426.0,0.4586678]
[1765585073683,0.12657035,90427.0,90426.0,0.5109005]
[1765585074087,0.05282162,90427.0,90426.0,0.4586678]
[1765585074391,0.06887035,90427.0,90426.0,0.5109005]
[1765585074688,0.02490162,90427.0,90426.0,0.51206431]
[1765585075488,0.02490162,90427.0,90426.0,0.51110307]
[1765585075791,0.08260162,90427.0,90426.0,0.51110307]
[1765585075992,0.12704113,90427.0,90426.0,0.4586678]
[1765585076285,0.12704113,90427.0,90426.0,0.51110307]
[1765585076486,0.12671454,90427.0,90426.0,0.51193098]
[1765585077779,0.06901454,90427.0,90426.0,0.51193098]
[1765585077982,0.06861269,90427.0,90426.0,0.51143139]
[1765585079390,0.02490162,90427.0,90426.0,0.4586678]
[1765585079685,0.02490162,90427.0,90426.0,0.5116402]
[1765585080089,0.02490162,90427.0,90426.0,0.4586678]
[1765585080291,0.02490162,90427.0,90426.0,0.5116402]
[1765585080593,0.02490162,90427.0,90426.0,0.51218549]
[1765585081778,0.02490162,90427.0,90426.0,0.4586678]
[1765585083494,0.02490162,90427.0,90426.0,0.51125301]
[1765585083694,0.02490162,90427.0,90426.0,0.63315301]
[1765585083894,0.02490162,90427.0,90426.0,0.5805678]
[1765585084101,0.02490162,90427.0,90426.0,0.63218912]
[1765585084697,0.02490162,90427.0,90426.0,0.27263555]
[1765585084897,0.02490162,90427.0,90426.0,0.63343555]
[1765585085996,0.02490162,90427.0,90426.0,0.5805678]
[1765585086294,0.00016583,90431.0,90430.0,0.0673973]
[1765585086790,0.05446995,90440.0,90426.0,0.57662584]
[1765585086791,0.0110562,90440.0,90439.0,0.12049424]
[1765585087191,0.0389762,90440.0,90439.0,0.0673962]
[1765585087593,0.0110562,90440.0,90439.0,0.0673962]
[1765585087796,0.0389762,90440.0,90439.0,0.11951537]
[1765585087997,0.08216566,90440.0,90439.0,0.12051576]
[1765585088695,0.03864439,90440.0,90439.0,0.0673962]
[1765585088902,0.08183385,90440.0,90439.0,0.12051576]
[1765585089202,0.09183385,90440.0,90439.0,0.12051576]
[1765585089989,0.08258598,90440.0,90439.0,0.11916428]
[1765585091301,0.08258598,90440.0,90439.0,0.12289594]
[1765585091302,0.08892228,90440.0,90439.0,0.12289594]
[1765585092193,0.04492,90440.0,90439.0,0.0693962]
[1765585092494,0.11870228,90440.0,90439.0,0.12289594]
[1765585093004,0.0747,90440.0,90439.0,0.0693962]
[1765585093598,0.017,90440.0,90439.0,0.0693962]
[1765585093805,0.06119166,90440.0,90439.0,0.12290017]
[1765585095114,0.017,90440.0,90439.0,0.0693962]
[1765585096118,0.06110055,90440.0,90439.0,0.12299678]
[1765585096708,0.0747,90440.0,90439.0,0.0693962]
[1765585097113,0.1177584,90440.0,90439.0,0.12227628]
[1765585098218,0.11770532,90440.0,90439.0,0.12191185]
[1765585098414,0.09949257,90440.0,90439.0,0.0693962]
[1765585098615,0.14249789,90440.0,90439.0,0.12191185]
[1765585099016,0.09949257,90440.0,90439.0,0.0693962]
[1765585099317,0.14249789,90440.0,90439.0,0.12191185]
[1765585099502,0.09949257,90440.0,90439.0,0.0693962]
[1765585099706,0.14365277,90440.0,90439.0,0.12136486]
[1765585100516,0.09949257,90440.0,90439.0,0.0693962]
[1765585101615,0.14410077,90440.0,90439.0,0.12093482]
[1765585102218,0.14407974,90440.0,90439.0,0.1216447]
[1765585102717,0.09949257,90440.0,90439.0,0.0693962]
[1765585103020,0.14389814,90440.0,90439.0,0.12145526]
[1765585103612,0.09949257,90440.0,90439.0,0.0693962]
[1765585103820,0.14298782,90440.0,90439.0,0.12102866]
[1765585104825,0.11320782,90440.0,90439.0,0.12102866]
[1765585105118,0.112856,90440.0,90439.0,0.12282638]
[1765585106120,0.06971257,90440.0,90439.0,0.0693962]
[1765585106522,0.11365581,90440.0,90439.0,0.12198493]
[1765585107418,0.11365581,90440.0,90439.0,0.48278493]
[1765585107722,0.06971257,90440.0,90439.0,0.4301962]
[1765585107926,0.04783099,90440.0,90439.0,0.48356535]
[1765585108221,0.05606,90442.0,90441.0,0.05801]
[1765585108430,0.05606,90442.0,90441.0,0.02803]
[1765585108718,0.05606,90442.0,90441.0,0.05801]
[1765585109422,0.05606,90442.0,90441.0,0.05901]
[1765585109811,0.05606,90442.0,90441.0,0.05801]
[1765585110222,0.10040759,90442.0,90441.0,0.11122882]
[1765585110633,0.05606,90442.0,90441.0,0.05801]
[1765585111121,0.09920637,90442.0,90441.0,0.11159993]
[1765585111725,0.1001704,90442.0,90441.0,0.11159968]
[1765585113624,0.09900201,90442.0,90441.0,0.11054592]
[1765585114023,0.05606,90442.0,90441.0,0.05801]
[1765585114228,0.09900201,90442.0,90441.0,0.11054592]
[1765585114726,0.10031792,90442.0,90441.0,0.10978515]
[1765585115826,0.05606,90442.0,90441.0,0.05801]
[1765585116028,0.10031345,90442.0,90441.0,0.10956015]
[1765585116229,0.05606,90442.0,90441.0,0.05801]
[1765585116528,0.10031342,90442.0,90441.0,0.0515501]
[1765585116719,0.084726,90441.0,90440.0,0.014]
[1765585117027,0.084726,90441.0,90440.0,0.06621859]
[1765585118015,0.084726,90441.0,90440.0,0.014]
[1765585118215,0.12834042,90441.0,90440.0,0.06746234]
[1765585118613,0.12834042,90441.0,90440.0,0.06846234]
[1765585118813,0.084726,90441.0,90440.0,0.016]
[1765585119329,0.12834042,90441.0,90440.0,0.06946234]
[1765585119527,0.084726,90441.0,90440.0,0.015]
[1765585119728,0.084726,90441.0,90440.0,0.028]
[1765585119929,0.15315266,90441.0,90440.0,0.08026999]
[1765585120633,0.47024166,90441.0,90440.0,0.028]
[1765585121429,0.51424271,90441.0,90440.0,0.08141015]
[1765585122229,0.47024166,90441.0,90440.0,0.028]
[1765585122430,0.51473199,90441.0,90440.0,0.07972296]
[1765585123024,0.47024166,90441.0,90440.0,0.028]
[1765585123221,0.51319326,90441.0,90440.0,0.07969373]
[1765585123830,0.47024166,90441.0,90440.0,0.028]
[1765585124823,0.51409366,90441.0,90440.0,0.08037967]
[1765585125024,0.15329366,90441.0,90440.0,0.08037967]
[1765585125222,0.51409366,90441.0,90440.0,0.08037967]
[1765585125729,0.15329366,90441.0,90440.0,0.08037967]
[1765585125933,0.47024166,90441.0,90440.0,0.028]
[1765585126132,0.51391763,90441.0,90440.0,0.08034691]
[1765585128346,0.51348084,90441.0,90440.0,0.08013978]
[1765585129734,0.47024166,90441.0,90440.0,0.028]
[1765585129932,0.51374561,90441.0,90440.0,0.08123437]
[1765585131338,0.52984577,90441.0,90440.0,0.028]
[1765585132139,0.57314038,90441.0,90440.0,0.08009369]
[1765585133042,0.57453126,90441.0,90440.0,0.08062136]
[1765585134341,0.5745092,90441.0,90440.0,0.08093642]
[1765585134939,0.52984577,90441.0,90440.0,0.028]
[1765585135140,0.5745092,90441.0,90440.0,0.08093642]
[1765585136541,0.5740037,90441.0,90440.0,0.08114716]
[1765585138040,0.52984577,90441.0,90440.0,0.028]
[1765585138242,0.51394242,90441.0,90440.0,0.07963387]
[1765585139543,0.47024166,90441.0,90440.0,0.028]
[1765585140443,0.51348618,90441.0,90440.0,0.07983581]
[1765585140745,0.47024166,90441.0,90440.0,0.028]
[1765585141128,0.51445825,90441.0,90440.0,0.08160263]
[1765585141734,0.51363223,90441.0,90440.0,0.08071674]
[1765585141943,0.45263166,90441.0,90440.0,0.08682]
[1765585142143,0.46733223,90441.0,90440.0,0.15592674]
[1765585142340,0.06810623,90441.0,90440.0,0.16698284]
[1765585142839,0.0683325,90441.0,90440.0,0.16605725]
[1765585143042,0.00016583,90449.0,90448.0,0.0698751]
[1765585143354,0.00016583,90449.0,90448.0,0.12166625]
[1765585143742,0.00016583,90449.0,90448.0,0.05882]
[1765585143947,0.00016583,90449.0,90448.0,0.11181469]
[1765585144145,0.00016583,90449.0,90448.0,0.05882]
[1765585144346,0.00016583,90449.0,90448.0,0.11281469]
[1765585144845,0.00016583,90449.0,90448.0,0.11342007]
[1765585145047,0.00016583,90449.0,90448.0,0.11442007]
[1765585146344,0.02820583,90449.0,90448.0,0.11385498]
[1765585147142,0.02820583,90449.0,90448.0,0.06082]
[1765585147446,0.07218661,90449.0,90448.0,0.11385498]
[1765585147943,0.02820583,90449.0,90448.0,0.06082]
[1765585148248,0.07160359,90449.0,90448.0,0.1124189]
[1765585148833,0.07262854,90449.0,90448.0,0.11444484]
[1765585150147,0.02820583,90449.0,90448.0,0.06082]
[1765585150350,0.07128993,90449.0,90448.0,0.11313604]
[1765585151349,0.07188531,90449.0,90448.0,0.11316295]
[1765585152051,0.02820583,90449.0,90448.0,0.06082]
[1765585152448,0.07188531,90449.0,90448.0,0.11316295]
[1765585152754,0.04384531,90449.0,90448.0,0.47396295]
[1765585153451,0.0437776,90449.0,90448.0,0.47380542]
[1765585153653,0.0437776,90449.0,90448.0,0.47280542]
[1765585153839,0.0437776,90449.0,90448.0,0.47380542]
[1765585154747,0.04339757,90449.0,90448.0,0.47447166]
[1765585154948,0.06773933,90449.0,90448.0,0.47447166]
[1765585155143,0.06773933,90449.0,90448.0,0.47247166]
[1765585155336,0.06773933,90449.0,90448.0,0.47447166]
[1765585156355,0.06764423,90449.0,90448.0,0.47453719]
[1765585156738,0.06764423,90449.0,90448.0,0.47353719]
[1765585156943,0.06764423,90449.0,90448.0,0.47453719]
[1765585157151,0.04328485,90449.0,90448.0,0.47481417]
[1765585157851,0.04328485,90449.0,90448.0,0.47381417]
[1765585158050,0.04328485,90449.0,90448.0,0.47481417]
[1765585158553,0.04353629,90449.0,90448.0,0.47381972]
[1765585159252,0.00016583,90449.0,90448.0,0.42162]
[1765585159451,0.04353629,90449.0,90448.0,0.47381972]
[1765585159846,0.00016583,90449.0,90448.0,0.42162]
[1765585160048,0.00016583,90449.0,90448.0,0.47507474]
[1765585160550,0.05563511,90458.0,90457.0,0.10967421]
[1765585160744,0.07996059,90458.0,90457.0,0.10967421]
[1765585160946,0.13787059,90458.0,90457.0,0.10967421]
[1765585161145,0.13787059,90458.0,90457.0,0.12072821]
[1765585161341,0.13787059,90458.0,90457.0,0.10967421]
[1765585161547,0.13787059,90458.0,90457.0,0.11767421]
[1765585161746,0.13715139,90458.0,90457.0,0.11811746]
[1765585162248,0.09328948,90458.0,90457.0,0.06535]
[1765585162451,0.13715139,90458.0,90457.0,0.11811746]
[1765585162752,0.09328948,90458.0,90457.0,0.06535]
[1765585163058,0.13715139,90458.0,90457.0,0.12411746]
[1765585164058,0.09328948,90458.0,90457.0,0.07135]
[1765585164358,0.13755701,90458.0,90457.0,0.12289266]
[1765585165247,0.13755701,90458.0,90457.0,0.07135]
[1765585165449,0.13651294,90458.0,90457.0,0.12411947]
[1765585166553,0.09328948,90458.0,90457.0,0.07135]